Cogmind - Beta 14 @@@ ROGUE MODE // 2024.12.07 @ 22:13:30 Player: SH-pl7 Result: Destroyed by G-67 Veteran with Field Laser Performance ------------- Evolutions (6) 3000 Regions Visited (11) 2200 Robots Destroyed (79) 395 Value Destroyed (3222) 3222 Prototype IDs (26) 520 Alien Tech Used (2) 400 Bonus (213) 213 TOTAL SCORE: 9950 Bonus ------- High Alert Combat Kills 87 Met Zhirov 300 Friendly Fire -174 Cogmind --------- Core Integrity 0/1150 Matter 575/600 Energy 100/100 System Corruption 8% Temperature Cool (9) Movement Core (300) Ox5 Location -3/Proximity Caves Parts ------- > --- POWER (2) -------- (None) > --- PROPULSION (5) --- (None) > --- UTILITY (9) ------ Medium Storage Unit Improved Matter Compressor Advanced Terrain Scan Processor 0b10 Decoder Chip [Scout] Advanced ECM Suite Graphene Brace Advanced Hacking Suite > --- WEAPON (3) ------- (None) > --- INVENTORY (10) --- Cooled Field Propulsion Drive Cooled Field Propulsion Drive Improved Salvage Targeting Computer Improved Actuator Array Heavy Armor Plating Makeshift Light Armor Plating Long-range Tractor Beam Advanced Recalibrator Peak State ------------ > --- POWER ------------ Micro Fission Core Fusion Reactor > --- PROPULSION ------- Advanced Myomer Leg Advanced Myomer Leg Advanced Myomer Leg > --- UTILITY ---------- Advanced Power Amplifier Medium Storage Unit Improved Matter Compressor Long-range Sensor Array Advanced Terrain Scan Processor 0b10 Decoder Chip [Scout] Advanced ECM Suite Graphene Brace Advanced Hacking Suite > --- WEAPON ----------- Beamcaster Beamcaster Beamcaster > --- INVENTORY -------- Cooled Field Propulsion Drive Cooled Field Propulsion Drive Cooled Field Propulsion Drive Improved Salvage Targeting Computer Improved Actuator Array Heavy Armor Plating Long-range Tractor Beam Beamcaster [Rating: 105] Favorites ----------- Power Ion Engine Engine Ion Engine Power Core Light Nuclear Core Reactor Fusion Reactor Propulsion Light Treads Treads Light Treads Leg Advanced Myomer Leg Wheel Compact Wheel Hover Unit Gyrokinetic Inverter Flight Unit Cooled Field Propulsion Drive Utility Large Storage Unit Device Seismic Detector Storage Large Storage Unit Processor Armor Integrity Analyzer Hackware Advanced Hacking Suite Protection Improved Light Armor Plating Weapon Particle Cannon Energy Gun Beamcaster Energy Cannon Particle Cannon Ballistic Gun Light Assault Rifle Ballistic Cannon Hypervelocity Gauss Cannon Launcher Missile Launcher Special Weapon Mining Laser Impact Weapon Great Maul Special Melee Weapon Datajack Build | -11 -10 -10 -8 -7 -6 -5 -4 -4 -4 -4 -3 ------- Run | Yrd Mat Sub Mat Fac Fac Fac Fac Upp Upp Zhi Pro Slots Evolved 12 | . . . 4 2 2 2 2 . . . . Power 1 | . . . . . . . 1 . . . . Propulsion 3 | . . . 1 . 1 . 1 . . . . Utility 7 | . . . 3 1 1 2 . . . . . Weapon 1 | . . . . 1 . . . . . . . Parts Attached 135 | 7 19 6 11 7 16 10 41 4 1 9 4 Power 13 | 1 2 . . . 2 . 7 . . 1 . Engine 5 | 1 2 . . . 2 . . . . . . Core 3 | . . . . . . . 3 . . . . Reactor 5 | . . . . . . . 4 . . 1 . Propulsion 35 | 3 4 . 4 2 7 1 10 . . 3 1 Treads 19 | 2 4 . 1 . 7 1 4 . . . . Leg 6 | . . . 3 . . . . . . 3 . Wheel 4 | 1 . . . 2 . . 1 . . . . Hover 1 | . . . . . . . 1 . . . . Flight 5 | . . . . . . . 4 . . . 1 Utility 38 | 1 1 2 3 1 3 6 12 3 1 3 2 Device 19 | . . 1 1 1 1 2 8 2 . 1 2 Storage 4 | 1 1 . . . . . 1 . . 1 . Processor 6 | . . 1 1 . . 2 . 1 1 . . Hackware 3 | . . . . . . 1 1 . . 1 . Protection 6 | . . . 1 . 2 1 2 . . . . Artifact . | . . . . . . . . . . . . Weapon 49 | 2 12 4 4 4 4 3 12 1 . 2 1 Energy Gun 9 | . 2 . . . 1 . 2 1 . 2 1 Energy Cannon 18 | . 7 2 2 2 1 1 3 . . . . Ballistic Gun 6 | 2 . . . . 1 . 3 . . . . Ballistic Cannon 6 | . . . . 1 1 2 2 . . . . Launcher 3 | . . . 1 . . . 2 . . . . Special Weapon 3 | . 2 1 . . . . . . . . . Impact Weapon 1 | . . . . 1 . . . . . . . Slashing Weapon . | . . . . . . . . . . . . Piercing Weapon . | . . . . . . . . . . . . Special Melee Weapon 3 | . 1 1 1 . . . . . . . . Unidentified Prototypes 8 | . . . . . 1 . 2 . . 5 . Parts Lost 40 | . 1 . . . . . 25 . . . 14 Power 6 | . 1 . . . . . 3 . . . 2 Propulsion 9 | . . . . . . . 5 . . . 4 Utility 13 | . . . . . . . 9 . . . 4 Weapon 12 | . . . . . . . 8 . . . 4 Highest Loss Streak 22 | . 1 . . . . . 22 . . . 8 To Critical Strikes . | . . . . . . . . . . . . Average Slot Usage (%) 90 | . 84 100 99 95 98 99 82 63 68 80 83 Engine 7 | . 13 14 9 7 6 5 3 . . . . Core 1 | . . . . . . . 4 5 5 5 3 Treads 19 | . 27 28 24 . 26 23 18 . . . . Leg 2 | . . . 2 16 . . . . . 12 14 Device 8 | . . 10 9 10 13 7 6 24 21 17 19 Storage 9 | . 14 14 9 7 6 5 4 5 5 8 10 Processor 9 | . . 3 17 15 13 16 12 4 10 10 10 Hackware 1 | . . . . . . 3 4 . . 3 5 Protection 5 | . . . 9 7 11 16 10 . . . . Energy Gun 4 | . 5 8 . . 4 . . 2 5 11 13 Energy Cannon 11 | . 19 18 17 17 8 11 5 . . . . Ballistic Cannon 2 | . . . . 2 4 4 5 . . . . Peak Build Rating 105 | 6 9 14 27 35 49 73 97 74 78 103 105 Average Rating 46 | 4 8 10 21 30 43 64 78 70 74 91 98 On Entrance 42 | . 6 8 14 27 32 49 73 54 74 74 103 Naked Turns 40 | . . . . . . . 40 . . . . Heaviest Build 78 | 10 31 34 41 52 60 72 78 28 28 53 55 Greatest Support 141 | 40 40 40 60 44 90 97 141 28 28 90 90 Greatest Overweight (x) 5 | . 1 . . 1 . . 1 . . . 5 Average Overweight (x) . | . . . . . . . . . . . . Largest Inventory Capacity 15 | 8 15 15 15 15 15 15 15 10 10 10 10 Average Capacity 13 | 7 14 15 15 15 15 15 13 10 10 10 10 Most Carried 15 | 6 13 15 15 15 15 15 15 10 7 10 10 Average Carried 12 | 3 10 14 13 14 14 13 13 7 7 9 9 Final Capacity 15 | 8 15 15 15 15 15 15 10 10 10 10 10 Final Carried 15 | 6 13 15 15 15 15 15 5 7 7 9 9 Class Distribution -------------------- 45% | Mutant 33% | Scavenger-Tank 6% | Derelict-Tank 3% | Derelict-Skirmisher Dominant Class ---------------- Mutant | -10/Materials Mutant | -10/Subcaves Mutant | -8/Materials Scavenger-Gunner | -7/Factory Scavenger-Tank | -6/Factory Scavenger-Tank | -5/Factory Scavenger-Tank | -4/Factory Infiltrator-Sprinter | -4/Upper Caves Infiltrator-Sprinter | -4/Upper Caves Derelict-Skirmisher | -4/Zhirov Derelict-Tank | -3/Proximity Caves Resources | -11 -10 -10 -8 -7 -6 -5 -4 -4 -4 -4 -3 ----------- Run | Yrd Mat Sub Mat Fac Fac Fac Fac Upp Upp Zhi Pro Matter Collected 2992 | 237 222 60 149 66 189 194 1286 82 70 . 437 Remotely 592 | . . . . . . . 592 . . . . Salvage Created 3158 | . 415 164 156 69 116 320 1673 . . . 245 Parts 155 | . 31 10 13 4 6 8 79 . . . 4 Haulers Intercepted 1 | . . . . . . . 1 . . . . Recyclers Shooed . | . . . . . . . . . . . . Parts Field Recycled . | . . . . . . . . . . . . Retrieved Matter . | . . . . . . . . . . . . Parts Self-Destructed 20 | . . 10 . . . . . 4 . . 6 Prevented . | . . . . . . . . . . . . Kills | -11 -10 -10 -8 -7 -6 -5 -4 -4 -4 -4 -3 ------- Run | Yrd Mat Sub Mat Fac Fac Fac Fac Upp Upp Zhi Pro Combat Hostiles Destroyed 58 | . 9 6 8 2 2 2 26 . . . 3 Melee 1 | . . . . . . . 1 . . . . Guns 8 | . . . . . . . 5 . . . 3 Cannons 36 | . 7 6 2 2 2 1 16 . . . . AOE 10 | . . . 6 . . . 4 . . . . Classes Destroyed 13 | . 4 1 2 . 2 1 3 . . . . Worker 7 | . . . . . 1 . 6 . . . . Builder 2 | . . . . . . . 2 . . . . Tunneler 1 | . . . . . . . 1 . . . . Hauler 1 | . . . . . . . 1 . . . . Recycler 3 | . . . . . . 2 1 . . . . Operator 3 | . 2 . . . . . 1 . . . . Watcher 4 | . 3 . . . . . 1 . . . . Swarmer 15 | . 3 3 4 1 . . 4 . . . . Grunt 17 | . 6 1 . 1 1 . 7 . . . 1 Sentry 5 | . . . 2 . . . 2 . . . 1 Hunter 6 | . . . 2 . . 1 3 . . . . Programmer 13 | . . . . . 1 1 10 . . . 1 Subdweller 2 | . . 2 . . . . . . . . . Best Kill Streak 11 | . 3 3 7 1 1 2 11 . . . 1 Combat Bots Only 8 | . 3 3 7 1 1 1 8 . . . 1 Max Kills in Single Turn 6 | . 1 1 4 1 1 2 6 . . . 1 Gunslinging . | . . . . . . . . . . . . Exploded 4 | . . . 4 . . . 3 . . . . Melee 1 | . . . . . . . 1 . . . . Uniques/NPCs Destroyed . | . . . . . . . . . . . . Combat | -11 -10 -10 -8 -7 -6 -5 -4 -4 -4 -4 -3 -------- Run | Yrd Mat Sub Mat Fac Fac Fac Fac Upp Upp Zhi Pro Hostile Shots Fired 711 | . 32 43 20 11 43 13 370 1 . . 178 Missed 227 | . 10 12 7 6 17 7 107 1 . . 60 Damage Taken 8655 | . 237 414 207 51 503 171 4630 . . . 2442 Core 1359 | . 85 128 16 . 16 23 467 . . . 624 Absorbed by Shields . | . . . . . . . . . . . . Ignored by Resistances 29 | . . . 24 5 . . . . . . . Core Remaining (%) 84 | 100 . 14 97 100 98 97 . . . . . Volleys Fired 197 | . 37 25 11 4 5 10 84 1 1 . 19 Largest 3 | . 2 2 2 3 3 3 3 1 1 . 3 Hottest 235 | . 136 136 136 196 208 226 235 75 75 . 225 Shots Fired 479 | . 66 48 19 12 16 29 232 2 1 . 54 Gun 144 | . 9 15 . . 5 . 58 2 1 . 54 Cannon 325 | . 54 31 16 12 11 29 172 . . . . Launcher 5 | . . . 3 . . . 2 . . . . Special 5 | . 3 2 . . . . . . . . . Kinetic 179 | . 4 . . 4 5 9 157 . . . . Thermal 261 | . 62 48 16 8 11 10 49 2 1 . 54 Explosive 5 | . . . 3 . . . 2 . . . . Electromagnetic 34 | . . . . . . 10 24 . . . . Robot Hit Streak 23 | . 13 13 8 6 4 6 23 . . . 13 Robot Miss Streak 8 | . 3 8 4 3 3 3 4 . . . 7 Penetration Max 2 | . . . . . . . 2 . . . . Secondary Targets . | . . . . . . . . . . . . Shots Hit Robots 284 | . 41 26 14 5 11 15 143 . . . 29 Core Hits 138 | . 13 8 14 2 8 8 75 . . . 10 Critical Kills 8 | . 3 . . . . 1 4 . . . . Critical Parts Destroyed 22 | . . . . . 1 1 20 . . . . Critical Strikes 38 | . 3 1 . . 1 2 29 . . . 2 Burn 3 | . . 1 . . . . . . . . 2 Meltdown 4 | . 3 . . . . 1 . . . . . Destroy 26 | . . . . . 1 1 24 . . . . Blast 5 | . . . . . . . 5 . . . . Melee Attacks 4 | . 1 1 1 1 . . . . . . . Impact 1 | . . . . 1 . . . . . . . Slashing . | . . . . . . . . . . . . Piercing . | . . . . . . . . . . . . Sneak Attacks 3 | . 1 1 1 . . . . . . . . Combat Hostiles . | . . . . . . . . . . . . Follow-up Attacks . | . . . . . . . . . . . . Damage Inflicted 8923 | . 818 442 743 82 291 1033 4831 . . . 683 Guns 1800 | . 36 113 . . 114 . 869 . . . 668 Cannons 5288 | . 782 329 269 82 177 368 3281 . . . . Explosions 1793 | . . . 474 . . 665 654 . . . . Melee . | . . . . . . . . . . . . Ramming 42 | . . . . . . . 27 . . . 15 Kinetic 2777 | . 10 . . 35 40 63 2629 . . . . Thermal 4341 | . 808 442 269 47 251 806 1050 . . . 668 Explosive 952 | . . . 474 . . . 478 . . . . Electromagnetic 811 | . . . . . . 164 647 . . . . Impact . | . . . . . . . . . . . . Slashing . | . . . . . . . . . . . . Piercing . | . . . . . . . . . . . . Highest Corruption 12 | . . . . . 4 . 12 11 9 7 8 Average Corruption 7 | . . . . . 3 . 9 9 7 7 7 Corruption Purged 5 | . . . . . . . 1 2 2 . . Corruption Blocked . | . . . . . . . . . . . . Effects 90 | . . . . . 7 . 39 6 2 8 28 Message Errors 15 | . . . . . 2 . 8 2 1 . 2 Matter Fused 17 | . . . . . 4 . 5 1 . 2 5 Heat Flow Errors 16 | . . . . . . . 5 . . 3 8 Energy Discharges 15 | . . . . . . . 5 . . 2 8 Parts Rejected 1 | . . . . . . . 1 . . . . Parts Fused 2 | . . . . . . . 1 . 1 . . Data Loss (minor) 9 | . . . . . . . 7 . . 1 1 Data Loss (major) 2 | . . . . . . . . 2 . . . Misfires 6 | . . . . . 1 . 1 1 . . 3 Alerts 4 | . . . . . . . 3 . . . 1 Weapon Failures 3 | . . . . . . . 3 . . . . Overload Shots . | . . . . . . . . . . . . Overflow Damage 310 | . . . 10 . . 138 162 . . . . Projectiles 150 | . . . . . . 1 149 . . . . Explosions 160 | . . . 10 . . 137 13 . . . . Melee . | . . . . . . . . . . . . Knockbacks 24 | . . . . . . . 24 . . . . Impact . | . . . . . . . . . . . . Kinetic 23 | . . . . . . . 23 . . . . Secondary 1 | . . . . . . . 1 . . . . Self-Inflicted Damage 52 | . . . . . . . 51 . . . 1 Shots 2 | . . . . . . . 2 . . . . Rammed 5 | . . . . . . . 4 . . . 1 Targets Rammed 9 | . . . . . . . 5 . . . 4 Kicked 3 | . . . . . . . . . . . 3 Crushed 1 | . . . . . . . 1 . . . . Highest Temperature 533 | . 318 120 198 150 190 93 449 36 8 271 533 Average Temperature 100 | . 100 34 78 65 70 44 105 15 6 118 152 Received Heat Transfer 1192 | . 93 102 18 15 108 27 535 . . . 294 Effects 10 | . 1 . . . . . 4 . . . 5 Shutdowns 3 | . . . . . . . 1 . . . 2 Energy Bleed 2 | . . . . . . . . . . . 2 Interference 1 | . . . . . . . . . . . 1 Matter Decay 1 | . . . . . . . 1 . . . . Short Circuit 2 | . 1 . . . . . 1 . . . . Damage (minor) 1 | . . . . . . . 1 . . . . Siege Activations . | . . . . . . . . . . . . Robots Corrupted . | . . . . . . . . . . . . Combat Hostiles . | . . . . . . . . . . . . Parts Fried 3 | . . . . . . 2 1 . . . . Impact Corruptions . | . . . . . . . . . . . . Robots Melted 4 | . 3 . . . . 1 . . . . . Combat Hostiles 3 | . 2 . . . . 1 . . . . . Parts Melted 18 | . 3 1 1 . 2 5 2 . . . 4 Heat Transferred 6326 | . 1480 999 481 87 500 473 1085 . . . 1221 Parts Sabotaged . | . . . . . . . . . . . . Parts Stolen . | . . . . . . . . . . . . Parts Stripped . | . . . . . . . . . . . . Power Chain Reactions 1 | . . . . . . . 1 . . . . Alert | -11 -10 -10 -8 -7 -6 -5 -4 -4 -4 -4 -3 ------- Run | Yrd Mat Sub Mat Fac Fac Fac Fac Upp Upp Zhi Pro Peak Influence 504 | . 140 . 248 72 80 213 504 . . . . Initial 23 | . . . . 21 9 . 23 . . . . Average 83 | . 36 . 65 31 33 60 174 . . . . Maximum Alert Level 2 | . . . 1 . . 1 2 . . . . Low Security (%) 83 | 100 100 . 73 100 100 85 61 . . . . Level 1 11 | . . . 26 . . 14 22 . . . . Level 2 4 | . . . . . . . 16 . . . . Level 3 . | . . . . . . . . . . . . Level 4 . | . . . . . . . . . . . . Level 5 . | . . . . . . . . . . . . High Security . | . . . . . . . . . . . . Max Security . | . . . . . . . . . . . . Squads Dispatched 26 | . 2 . 6 1 1 6 9 . . . 1 Investigation 2 | . . . . . 1 . 1 . . . . Extermination 6 | . . . . . . 2 4 . . . . Reinforcement 13 | . 2 . 3 1 . 3 4 . . . . Assault 2 | . . . . . . 1 . . . . 1 Garrison 3 | . . . 3 . . . . . . . . Intercept . | . . . . . . . . . . . . Searches Triggered . | . . . . . . . . . . . . Construction Impeded 2 | . . . 1 . . . 1 . . . . Haulers Reinforced 2 | . . . . . . 1 1 . . . . Active Scanning Responses . | . . . . . . . . . . . . Cargo Convoy Interrupts . | . . . . . . . . . . . . Stealth | -11 -10 -10 -8 -7 -6 -5 -4 -4 -4 -4 -3 --------- Run | Yrd Mat Sub Mat Fac Fac Fac Fac Upp Upp Zhi Pro Distress Signals 7 | . 1 . 3 1 . . 2 . . . . Communications Jammed . | . . . . . . . . . . . . Distress Signals . | . . . . . . . . . . . . Times Spotted 166 | . 18 9 12 12 9 23 52 2 . . 29 Peak Tracking Total 15 | . 4 3 8 7 3 4 10 2 . . 15 Tactical Retreats 16 | . 2 . . . . 1 6 1 . . 6 Traps | -11 -10 -10 -8 -7 -6 -5 -4 -4 -4 -4 -3 ------- Run | Yrd Mat Sub Mat Fac Fac Fac Fac Upp Upp Zhi Pro Traps Triggered 6 | . 3 . . . 1 . 2 . . . . Indirectly 2 | . . . . . . . 2 . . . . Trap Hack Attempts . | . . . . . . . . . . . . Triggered . | . . . . . . . . . . . . Disarmed . | . . . . . . . . . . . . Reprogrammed . | . . . . . . . . . . . . Reused . | . . . . . . . . . . . . Traps Extracted . | . . . . . . . . . . . . Installed . | . . . . . . . . . . . . Triggered 1 | . . . . . . . . . . . 1 Machines | -11 -10 -10 -8 -7 -6 -5 -4 -4 -4 -4 -3 ---------- Run | Yrd Mat Sub Mat Fac Fac Fac Fac Upp Upp Zhi Pro Machines Disabled 9 | . 2 . . 1 . 3 3 . . . . Max in Single Turn 2 | . 1 . . 1 . 2 1 . . . . Garrison Access 1 | . . . . . . 1 . . . . . Machines Repaired . | . . . . . . . . . . . . Machines Dismantled . | . . . . . . . . . . . . Machines Sabotaged . | . . . . . . . . . . . . Overloaded Fab Kills . | . . . . . . . . . . . . Hacking | -11 -10 -10 -8 -7 -6 -5 -4 -4 -4 -4 -3 --------- Run | Yrd Mat Sub Mat Fac Fac Fac Fac Upp Upp Zhi Pro Machines Accessed 16 | . 1 2 . 2 . . 2 1 . 8 . Terminals 5 | . 1 . . 2 . . 2 . . . . Fabricators . | . . . . . . . . . . . . Repair Stations . | . . . . . . . . . . . . Recycling Units . | . . . . . . . . . . . . Scanalyzers . | . . . . . . . . . . . . Garrison Access . | . . . . . . . . . . . . Total Hacks 62 | . 5 3 . 2 . . 4 1 . 47 . Successful 55 | . 3 3 . 1 . . . 1 . 47 . Failed 7 | . 2 . . 1 . . 4 . . . . Catastrophic 1 | . . . . . . . 1 . . . . Database Lockouts . | . . . . . . . . . . . . Manual 6 | . 2 . . 2 . . 2 . . . . Terminals 11 | . 5 . . 2 . . 4 . . . . Fabricators . | . . . . . . . . . . . . Repair Stations . | . . . . . . . . . . . . Recycling Units . | . . . . . . . . . . . . Scanalyzers . | . . . . . . . . . . . . Garrison Access . | . . . . . . . . . . . . Terminal Hacks 53 | . 2 3 . . . . . 1 . 47 . Record 36 | . . 1 . . . . . . . 35 . Part Schematic 4 | . . . . . . . . . . 4 . Robot Analysis 4 | . . . . . . . . . . 4 . Prototype ID Bank 4 | . . . . . . . . . . 4 . Open Door 2 | . . 1 . . . . . 1 . . . Patrol Status 1 | . 1 . . . . . . . . . . Hauler Manifests 1 | . 1 . . . . . . . . . . Release Object 1 | . . 1 . . . . . . . . . Fabricator Hacks . | . . . . . . . . . . . . Repair Station Hacks . | . . . . . . . . . . . . Recycling Unit Hacks . | . . . . . . . . . . . . Scanalyzer . | . . . . . . . . . . . . Garrison Access Hacks . | . . . . . . . . . . . . Unauthorized Hacks 2 | . 1 . . 1 . . . . . . . Terminals 2 | . 1 . . 1 . . . . . . . Botnet 2 | . 1 . . 1 . . . . . . . Fabricators . | . . . . . . . . . . . . Repair Stations . | . . . . . . . . . . . . Recycling Units . | . . . . . . . . . . . . Scanalyzers . | . . . . . . . . . . . . Garrison Access . | . . . . . . . . . . . . Data Cores Recovered . | . . . . . . . . . . . . Used . | . . . . . . . . . . . . Hacking Detections 5 | . 1 . . 2 . . 2 . . . . Full Trace Events . | . . . . . . . . . . . . Feedback Events . | . . . . . . . . . . . . Feedback Blocked . | . . . . . . . . . . . . Robot Schematics Acquired . | . . . . . . . . . . . . Robots Built . | . . . . . . . . . . . . Authchips . | . . . . . . . . . . . . Time . | . . . . . . . . . . . . Total Robot Build Rating . | . . . . . . . . . . . . Part Schematics Acquired 4 | . . . . . . . . . . 4 . Parts Built . | . . . . . . . . . . . . Authchips . | . . . . . . . . . . . . Time . | . . . . . . . . . . . . Total Part Build Rating . | . . . . . . . . . . . . Parts Repaired . | . . . . . . . . . . . . Time . | . . . . . . . . . . . . Parts Recycled . | . . . . . . . . . . . . Recycled Matter . | . . . . . . . . . . . . Retrieved Matter . | . . . . . . . . . . . . Retrieved Components . | . . . . . . . . . . . . Parts Scanalyzed . | . . . . . . . . . . . . Part Schematics Acquired . | . . . . . . . . . . . . Parts Damaged . | . . . . . . . . . . . . Bothacking | -11 -10 -10 -8 -7 -6 -5 -4 -4 -4 -4 -3 ------------ Run | Yrd Mat Sub Mat Fac Fac Fac Fac Upp Upp Zhi Pro Used RIF Installer . | . . . . . . . . . . . . Robots Hacked 3 | . 1 1 1 . . . . . . . . Non-combat 1 | . 1 . . . . . . . . . . Combat 2 | . . 1 1 . . . . . . . . Robot Hacks Applied 3 | . 1 1 1 . . . . . . . . parse_system 2 | . . 1 1 . . . . . . . . check_alert 1 | . 1 . . . . . . . . . . Relay Couplers Released 3 | . . . . . . 3 . . . . . Machine Destruction 3 | . . . . . . 3 . . . . . Fabnet Peak Effective % . | . . . . . . . . . . . . Robots Rewired . | . . . . . . . . . . . . Allies Hacked . | . . . . . . . . . . . . Hacks Repelled . | . . . . . . . . . . . . Allies | -11 -10 -10 -8 -7 -6 -5 -4 -4 -4 -4 -3 -------- Run | Yrd Mat Sub Mat Fac Fac Fac Fac Upp Upp Zhi Pro Total Allies . | . . . . . . . . . . . . Largest Group . | . . . . . . . . . . . . Highest-Rated Group . | . . . . . . . . . . . . Highest-Rated Ally . | . . . . . . . . . . . . Total Orders . | . . . . . . . . . . . . Ally Attacks . | . . . . . . . . . . . . Total Damage . | . . . . . . . . . . . . Kills . | . . . . . . . . . . . . Allies Corrupted . | . . . . . . . . . . . . Allies Melted . | . . . . . . . . . . . . Intel | -11 -10 -10 -8 -7 -6 -5 -4 -4 -4 -4 -3 ------- Run | Yrd Mat Sub Mat Fac Fac Fac Fac Upp Upp Zhi Pro Robot Analysis Total 4 | . . . . . . . . . . 4 . Derelict Logs Recovered 2 | . . 1 . . . . . 1 . . . Drone Launches . | . . . . . . . . . . . . Drone Recoveries . | . . . . . . . . . . . . Exploration | -11 -10 -10 -8 -7 -6 -5 -4 -4 -4 -4 -3 ------------- Run | Yrd Mat Sub Mat Fac Fac Fac Fac Upp Upp Zhi Pro Turns Passed 8301 | 89 1510 1418 405 441 453 1015 1735 146 60 194 835 Spaces Moved 5398 | 54 744 807 221 283 244 553 1089 392 175 222 614 Core 86 | 1 . . . . . . 74 . . . 11 Treads 3250 | 32 744 807 197 . 244 553 673 . . . . Legs 893 | . . . 24 147 . . . . . 119 603 Wheels 235 | 21 . . . 136 . . 78 . . . . Hover 5 | . . . . . . . 5 . . . . Flight 929 | . . . . . . . 259 392 175 103 . Fastest Speed 22 | 50 160 160 113 105 160 160 22 32 32 32 120 Average Speed 129 | 134 160 160 154 142 160 160 121 32 32 79 123 Slowest Speed 300 | 160 240 160 160 189 160 162 250 32 32 120 300 Overloaded Moves 13 | . . . . . . . 13 . . . . Propulsion Burnouts . | . . . . . . . . . . . . Robots Hopped 3 | . . . . . . . 2 1 . . . Cave-ins Triggered . | . . . . . . . . . . . . Teleports 1 | . . . . . . . . . . 1 . Exploration Rate (%) 37 | 5 88 52 27 9 8 22 26 54 37 62 56 Regions Visited 11 Branch Regions 5 Pre-discovered Areas 3 | . . . . . . . . . . 3 . Known Exits Taken 4 | . . . 1 1 1 1 . . . . . Unknown Exits Taken 7 | 1 1 1 . . . . 1 1 1 1 . Scrap Searched 5 | . . 2 . . . . . 1 1 . 1 Spaces Dug 5 | . . . . 1 . . 4 . . . . Terrain Destroyed 114 | . . . 20 2 1 39 52 . . . . Melee 1 | . . . . 1 . . . . . . . Projectile 45 | . . . . 1 1 6 37 . . . . AOE 68 | . . . 20 . . 33 15 . . . . Terrain Rammed . | . . . . . . . . . . . . Walls Destroyed . | . . . . . . . . . . . . Machines Disabled . | . . . . . . . . . . . . Actions | -11 -10 -10 -8 -7 -6 -5 -4 -4 -4 -4 -3 --------- Run | Yrd Mat Sub Mat Fac Fac Fac Fac Upp Upp Zhi Pro Total 6256 | 68 990 880 262 308 296 665 1314 409 176 238 650 Wait 399 | . 176 33 11 10 13 63 79 8 . . 6 Move 5381 | 53 743 806 220 282 243 552 1084 389 174 221 614 Hop 3 | . . . . . . . 2 1 . . . Pick Up 62 | 8 9 5 6 2 5 13 4 5 . 2 3 Fast Attach 55 | 4 10 1 . 2 6 4 18 2 1 7 . Attach 38 | 2 3 1 4 1 2 3 13 2 . 3 4 Detach 5 | . . . . . . 1 1 . . 3 . Swap 44 | 1 6 4 7 4 8 3 10 . . 1 . Drop 58 | . 5 3 2 2 14 16 14 1 . 1 . Fire 197 | . 37 25 11 4 5 10 84 1 1 . 19 Melee 4 | . 1 1 1 1 . . . . . . . Ram 4 | . . . . . . . 3 . . . 1 Kick 3 | . . . . . . . . . . . 3 Crush 2 | . . . . . . . 2 . . . . Escape Stasis . | . . . . . . . . . . . . Rewire . | . . . . . . . . . . . . Trap . | . . . . . . . . . . . . Miscellaneous 1 | . . 1 . . . . . . . . . Route ------- -11/Scrapyard -10/Materials (discovered 6 exits: [*Mat x3] / [*Min x2] / *Sub) -10/Subcaves (discovered 2 exits: [*Mat x2]) -8/Materials -7/Factory (discovered 2 exits: *Fac / [*Low]) -6/Factory (discovered 2 exits: *Fac / [*Low]) -5/Factory (discovered 2 exits: *Fac x2) -4/Factory -4/Upper Caves -4/Upper Caves -4/Zhirov -3/Proximity Caves History --------- Turn | Location | Event 12 | -11/Scrapyard | Discovered new exit (range 15) 90 | -11/Scrapyard | Entered Materials 305 | -10/Materials | Build established: Mutant 396 | -10/Materials | Discovered new exit (range 15) 500 | -10/Materials | Discovered new exit (range 4) 672 | -10/Materials | Discovered new exit (range 13) 771 | -10/Materials | Discovered new exit (range 11) 1153 | -10/Materials | Discovered new exit (range 16) 1583 | -10/Materials | Discovered new exit (range 6) 1600 | -10/Materials | Entered Subcaves 1810 | -10/Subcaves | Released subatomizers from SUBCON Basin 1848 | -10/Subcaves | Discovered new exit (range 8) 2022 | -10/Subcaves | Shifting Twisted Machinery released Flamer 2034 | -10/Subcaves | Shifting Twisted Machinery released Battle Cannon 2035 | -10/Subcaves | Core integrity fell below 50% 2059 | -10/Subcaves | Discovered new exit (range 5) 2104 | -10/Subcaves | Learned 2 Materials zone layouts 2437 | -10/Subcaves | A swath of the cavern ceiling suddenly collapsed 2605 | -10/Subcaves | Core integrity fell below 20% 3018 | -10/Subcaves | Entered Materials 3018 | -8/Materials | Evolved 4 slots: Propulsion x1, Utility x3 3040 | -8/Materials | Garrison activated, responded to threat 3331 | -8/Materials | Destroyed 7 combat bots 3352 | -8/Materials | Met 7R-MNS 3407 | -8/Materials | Discovered new exit (range 5) 3421 | -8/Materials | Identified exit to Factory 3423 | -8/Materials | Entered Factory 3423 | -7/Factory | Evolved 2 slots: Utility x1, Weapon x1 3424 | -7/Factory | Caught up to 7R-MNS 3711 | -7/Factory | Discovered new exit (range 15) 3839 | -7/Factory | Discovered new exit (range 15) 3863 | -7/Factory | Identified exit to Factory 3864 | -7/Factory | Entered another Factory area 3864 | -6/Factory | Evolved 2 slots: Propulsion x1, Utility x1 3865 | -6/Factory | Caught up to 7R-MNS 4014 | -6/Factory | Discovered new exit (range 11) 4106 | -6/Factory | Discovered new exit (range 16) 4270 | -6/Factory | Build established: Scavenger-Tank 4302 | -6/Factory | Identified exit to Factory 4317 | -6/Factory | Entered another Factory area 4317 | -5/Factory | Evolved 2 slots: Utility x2 4318 | -5/Factory | Caught up to 7R-MNS 4378 | -5/Factory | Discovered new exit (range 16) 4409 | -5/Factory | Identified exit to Factory 5264 | -5/Factory | Discovered exit to Factory (range 9) 5332 | -5/Factory | Entered another Factory area 5332 | -4/Factory | Evolved 2 slots: Power x1, Propulsion x1 5333 | -4/Factory | Caught up to 7R-MNS 5957 | -4/Factory | 7R-MNS successfully reached the Upper Caves 6389 | -4/Factory | System corruption reached 10% 6816 | -4/Factory | Destroyed 8 combat bots 6865 | -4/Factory | Lost 22 parts (2p5n7u8w) 7052 | -4/Factory | Discovered new exit (range 15) 7067 | -4/Factory | Entered Upper Caves 7105 | -4/Upper Caves | Learned Research terminal intel 7189 | -4/Upper Caves | Spotted B-86 Titan 7211 | -4/Upper Caves | Discovered new exit (range 5) 7213 | -4/Upper Caves | Entered another Upper Caves area 7270 | -4/Upper Caves | Discovered new exit (range 8) 7273 | -4/Upper Caves | Entered Zhirov 7273 | -4/Zhirov | Discovered new exit (range 3) 7279 | -4/Zhirov | Met Zhirov 7285 | -4/Zhirov | Learned location of Quarantine (-3) 7285 | -4/Zhirov | Learned location of Testing (-2) 7285 | -4/Zhirov | Learned location of Command (-1) 7288 | -4/Zhirov | Zhirov requested help retrieving the SGEMP Prototype 7354 | -4/Zhirov | Found Alien Artifact 7367 | -4/Zhirov | Identified Transdimensional Reconstructor 7367 | -4/Zhirov | Warped through subspace 7420 | -4/Zhirov | Found Alien Artifact 7420 | -4/Zhirov | Identified Integrated Dissipator 7420 | -4/Zhirov | Installed Integrated Dissipator, increased core heat dissipation (+20) 7467 | -4/Zhirov | Entered Proximity Caves 7469 | -3/Proximity Caves | Attracted the attention of an 0b10 checkpoint 7771 | -3/Proximity Caves | Build established: Derelict-Tank 8002 | -3/Proximity Caves | Spotted B-86 Titan 8059 | -3/Proximity Caves | Spotter reported a threat 8115 | -3/Proximity Caves | Core integrity fell below 50% 8148 | -3/Proximity Caves | Spotter reported a threat 8157 | -3/Proximity Caves | Lost 3 parts (1p2w) 8196 | -3/Proximity Caves | Attracted the attention of an 0b10 outpost 8245 | -3/Proximity Caves | Spotter reported a threat 8282 | -3/Proximity Caves | Core integrity fell below 20% 8302 | -3/Proximity Caves | Destroyed by G-67 Veteran with Field Laser Last Messages --------------- 08242_ G-73 Enforcer unfolds itself. 08242_ G-67 Veteran unfolds itself. 08242_ M-36 Artificer unfolds itself. 08245_ M-36 Artificer repairs L-61 Swordsman. 08245_ ALERT: Unidentified potential threat approaching Complex 0b10. 08247_ M-36 Artificer repairs S-43 Plague. 08249_ Adv. Myomer Leg destroyed. 08249_ Beamcaster destroyed. 08250_ Lrn. Sensor Array destroyed. 08251_ Adv. Myomer Leg destroyed. 08252_ System corrupted: Heat flow error (+249). 08252_ Kicked S-43 Plague. 08255_ Kicked S-43 Plague out of the way. 08257_ S-43 Plague destroyed. 08257_ Acquired 30 matter. 08268_ Adv. Myomer Leg destroyed. 08283_ System corrupted: Heat flow error (+289). 08298_ Cld. Field Propulsion Drive destroyed. 08301_ Slammed into S-43 Plague. Map ----- +----------------------------------------------------+ | | | ?????????????????????????????????????????????????? | | ?????????????????????????????????????????????????? | | ?????????????????????????????????????????????????? | | ?????????????????????????????????????????????????? | | ?????????????????????????????????????????????????? | | ?????????????????????????????????????????????????? | | ?????????????????????????????????????????????????? | | ?????????????????????????????????????????????????? | | ?????????????????????????????????????????????????? | | ?????????????????????????????????????????????????? | | ?????????????????????????????????????????????????? | | ?????????????????????????????????????????????????? | | ?????????????????????????????????????????????????? | | ?????????????????????????????????????????????????? | | ?????????????###?????????????????????????????????? | | ##????#####?## #?????????????????????????????????? | | ###### ### #?##??????????????????????????????? | | ## #??????????????????????????????? | | [ #?##???????????????????????????? | | #####"######## ### ##?????????????????????????? | | ###???#%#""""""# ### #?????????????????????????? | | ??????#"# # ## ##????????????????????????? | | ??????# + / #??# ##???????????????????????? | | ??????# ###//### #???# s##??????????????????????? | | ?????? # # #???## g@##?????????????????????? | | ?????? # # ######gl s##????????????????????? | | ??????# ## ## ## pb ##???????????????????? | | ????#?# ##Y l #???????????????????? | | ??? #?# #??????????????????? | | ?? ### #??????????????????? | | ## ## g ## #??????????????????? | | ##" ### g ##? #?????????????????? | | ### ## ##?###g###?? #????????????????? | | #####?# #?# ????? #????? ???????????????? | | #?????# #??# ????? #????? ??????????????? | | #?????# ##??? ????####?????? ??????????????? | | #?????# ###?## ?????????????? ??????????????? | | ####### #??# ??????????????? ????????????????? | | ##?## ?????????????????????????????????? | | ###### ##?##?????????????????????????????????? | | ###### #????????????????????????????????????? | | ## #????????????????????????????????????? | | # ##????????????????????????????????????? | | ## ### ####?????????????????????????????????????? | | ## #?# #????????????????????????????????????????? | | ## #?# #????????????????????????????????????????? | | # #?# #????????????????????????????????????????? | | # #?# #????????????????????????????????????????? | | ## #?# #????????????????????????????????????????? | +----------------------------------------------------+ Best States ------------- Heat Dissipation 73 Energy Generation 41 Energy Capacity 550 Matter Stores 572 Matter Capacity 600 Sight Range 16 Robot Scan Range 18 Terrain Scan Density 210 ECM Strength 2 Jamming Range 14 Power Amplification 30 Armor Coverage 525 Resistance: KI 10 Evasion (%) 71 Targeting Accuracy 8 Armor Integrity Analysis 30 Recoil Reduction 5 Offensive Hacking 14 Item Schematics ----------------- Assault Drone Bay | -4/Zhirov | Free Exp. Heat Sink | -4/Zhirov | Free Exp. Optical Array | -4/Zhirov | Free Imp. Arc Thrower | -4/Zhirov | Free Robot Schematics ------------------ None Fabricated ------------ Nothing Alien Tech Used ----------------- Transdimensional Reconstructor Integrated Dissipator Achievements -------------- Subspace Traveler The Science Guy Challenges ------------ None Game ------ Seed DynamicNodeSubcomponent Manual? 0 Play Time 02:06:28 Cumulative 116.2 hours Start 2024.12.07 @ 19:51:08 End 2024.12.07 @ 22:13:30 Sessions 1 Manual Loads 0 Difficulty Rogue Special Mode None Game No. 117 Rogue 117 Adventurer 0 Explorer 0 Win Type - Total 1 Types 1/0/0/0/0/0/0/0/0 Lore% 20 Gallery% 46 Achievement% 41 Wizard Run 0 Options --------- Layout 2 ASCII 0 Keyboard 0 Movement Mouse Keybinds 0 Fullscreen 2 Font 16/SmallcapsGlow Map View 55x47 Zoom Use 10% Tactical HUD 1 Map Filters NONE Filters NONE Steam 1 RUN: b6209ff3-270d-4287-b69c-fc278a924350